bitfinex/quotes_ETHUSD_20260117
["timestamp","ask_amount","ask_price","bid_price","bid_amount"]
[1768652119599,0.28363167,3303.4,3303.0,2.18176859]
[1768652119802,6.16243596,3303.5,3303.0,2.18176859]
[1768652120115,0.28363175,3303.4,3303.0,2.18176859]
[1768652120321,6.16243596,3303.5,3303.0,2.18176859]
[1768652120522,0.2836525,3303.4,3303.0,2.18176859]
[1768652120699,6.16243596,3303.5,3303.0,2.18176859]
[1768652120899,0.28365257,3303.4,3303.0,2.18176859]
[1768652121135,6.16243596,3303.5,3303.0,2.18176859]
[1768652121831,0.28369121,3303.4,3303.0,2.18176859]
[1768652122038,6.16243596,3303.5,3303.0,2.18176859]
[1768652122202,0.28368968,3303.4,3303.0,2.18176859]
[1768652122501,6.16243596,3303.5,3303.0,2.18176859]
[1768652122699,0.28369392,3303.4,3303.0,2.18176859]
[1768652122900,2.13336158,3303.4,3303.0,2.18176859]
[1768652123838,2.13336158,3303.4,3302.9,0.001]
[1768652124006,2.13336158,3303.4,3302.9,2.23627378]
[1768652127238,5.16056273,3303.4,3302.9,2.23627378]
[1768652127426,2.13336158,3303.4,3302.9,2.23627378]
[1768652128854,2.13336158,3303.4,3302.9,5.2639114]
[1768652130341,2.13336158,3303.4,3302.9,2.23627378]
[1768652133744,2.13336158,3303.4,3303.2,0.001]
[1768652134841,5.16055016,3303.4,3303.2,0.001]
[1768652135040,2.13336158,3303.4,3303.2,0.001]
[1768652136774,5.1605726,3303.4,3303.2,0.001]
[1768652136934,2.13336158,3303.4,3303.2,0.001]
[1768652137339,6.02425297,3303.5,3303.2,0.001]
[1768652137525,0.28367475,3303.4,3303.2,0.001]
[1768652137726,6.02425297,3303.5,3303.2,0.001]
[1768652138024,0.28367481,3303.4,3303.2,0.001]
[1768652138227,6.02425297,3303.5,3303.2,0.001]
[1768652138412,0.28367537,3303.4,3303.2,0.001]
[1768652138612,6.02425297,3303.5,3303.2,0.001]
[1768652138823,0.28367839,3303.4,3303.2,0.001]
[1768652139023,6.02425297,3303.5,3303.2,0.001]
[1768652139224,0.28367833,3303.4,3303.2,0.001]
[1768652139544,6.02425297,3303.5,3303.2,0.001]
[1768652139743,0.28368299,3303.4,3303.2,0.001]
[1768652139949,6.02425297,3303.5,3303.2,0.001]
[1768652140144,0.91342196,3303.5,3303.2,2.10894647]
[1768652140312,0.0052736,3303.5,3303.2,2.10894647]
[1768652141346,0.0052736,3303.5,3303.3,2.10794647]
[1768652145351,5.11332071,3303.8,3303.5,2.10794647]
[1768652145352,0.00280264,3303.8,3303.5,2.10794647]
[1768652148278,0.00280264,3303.8,3303.5,2.60794647]
[1768652148443,2.08650038,3303.8,3303.5,0.5]
[1768652150180,0.00280264,3303.8,3303.5,0.5]
[1768652150390,0.00280264,3303.8,3303.5,1.06352135]
[1768652150583,0.00280264,3303.8,3303.5,3.17146782]
[1768652152581,0.00280264,3303.8,3303.5,2.60794647]
[1768652152974,0.00280264,3303.8,3303.5,2.10794647]
[1768652153154,0.00280264,3303.8,3303.5,2.60794647]
[1768652155053,0.00280264,3303.8,3303.5,0.5]
[1768652158784,0.00280264,3303.8,3303.5,2.51251976]
[1768652160481,0.00280264,3303.8,3303.5,0.5]
[1768652165903,2.04612284,3303.8,3303.5,0.5]
[1768652166406,0.00280264,3303.8,3303.5,0.5]
[1768652167566,0.00280264,3303.8,3303.5,1.05397936]
[1768652169067,0.00280264,3303.8,3303.5,2.56649912]
[1768652169494,0.00280264,3303.8,3303.6,2.01251976]
[1768652171404,0.00280264,3303.8,3303.5,0.55397936]
[1768652171603,0.00280264,3303.8,3303.5,2.56649912]
[1768652181990,0.00280264,3303.8,3303.5,2.01251976]
[1768652182490,3.02549288,3305.3,3303.7,4.39804495]
[1768652182689,1.53523669,3307.5,3303.9,2.12328666]
[1768652182690,0.002,3304.5,3303.9,2.12328666]
[1768652182897,1.95611008,3304.8,3303.9,2.12328666]
[1768652183096,1.95611008,3304.8,3304.0,0.5]
[1768652183319,1.95437289,3304.7,3304.1,0.76232867]
[1768652183808,1.95437289,3304.6,3304.1,0.76232867]
[1768652184201,1.95437289,3304.6,3303.5,1.98689454]
[1768652184424,1.95437289,3303.8,3303.2,0.90879661]
[1768652184597,1.95517561,3303.8,3303.2,0.001]
[1768652184920,1.95517561,3303.8,3303.2,2.12428666]
[1768652185092,1.95517561,3303.8,3303.3,0.21242867]
[1768652186134,1.95437289,3303.7,3303.2,0.001]
[1768652186305,1.95437289,3303.5,3302.9,0.001]
[1768652188022,1.95437289,3303.3,3302.9,0.001]
[1768652190240,1.95437289,3303.1,3302.9,0.001]
[1768652190545,1.95437289,3303.1,3302.8,0.00080956]
[1768652191139,1.95437289,3302.9,3302.5,0.001]
[1768652192712,5.16610927,3302.8,3302.5,0.001]
[1768652193011,2.13837523,3302.7,3302.5,0.001]
[1768652193612,5.1662182,3302.7,3302.5,0.001]
[1768652194148,2.13837523,3302.7,3302.5,0.001]
[1768652195649,5.16621291,3302.7,3302.5,0.001]
[1768652199864,5.16621291,3302.7,3302.3,2.12328666]
[1768652201238,5.16621291,3302.7,3301.5,0.00063148]
[1768652201239,2.65499652,3302.6,3301.5,0.00063148]
[1768652201419,2.65499652,3302.6,3301.6,2.54573694]
[1768652201420,2.13999292,3302.2,3301.6,2.54573694]
[1768652202350,2.13999292,3302.2,3301.6,2.04573694]
[1768652203051,2.13837523,3302.1,3301.6,2.04573694]
[1768652204760,5.16677353,3302.1,3301.6,2.04573694]
[1768652205555,2.13837523,3302.0,3301.5,0.50063148]
[1768652206741,5.16686676,3302.0,3301.5,0.50063148]
[1768652206946,2.13837523,3301.9,3301.5,0.50063148]
[1768652207151,2.13837523,3301.9,3301.5,0.00063148]
[1768652209170,2.13837523,3301.7,3301.4,0.00063148]
[1768652209379,2.13837523,3301.7,3301.1,0.00160832]
[1768652209574,2.13837523,3301.5,3301.1,0.00160832]
[1768652211077,2.13837523,3301.3,3301.1,0.00160832]
[1768652211977,2.13837523,3301.3,3300.8,0.00080522]
[1768652213086,2.11955892,3300.9,3300.7,0.001]
[1768652214060,2.11955892,3300.9,3300.4,0.00080465]
[1768652215182,3.02956858,3300.8,3300.4,0.00080465]
[1768652215486,2.11955892,3300.7,3300.4,0.00080465]
[1768652217388,2.11955892,3300.6,3300.4,0.00080465]
[1768652218591,2.11955892,3300.8,3300.4,0.00080465]
[1768652220495,5.14913008,3300.8,3300.4,0.00080465]
[1768652220698,3.02957116,3300.8,3300.4,2.05160624]
[1768652220886,3.02950699,3300.9,3300.4,2.05160624]
[1768652221794,5.14906591,3300.9,3300.4,2.05160624]
[1768652226197,2.11955892,3300.8,3300.4,0.00080465]
[1768652228399,2.11955892,3300.8,3300.4,2.05160624]
[1768652229487,2.11955892,3300.8,3300.7,0.001]
[1768652231127,3.02956858,3300.8,3300.4,0.00080465]
[1768652231274,2.11955892,3300.7,3300.4,0.00080465]
[1768652232897,2.11955892,3300.6,3300.4,0.00080465]
[1768652238719,5.14932728,3300.6,3300.4,0.00080465]
[1768652239523,2.11955892,3300.6,3300.4,0.00080465]
[1768652240520,5.14914984,3300.8,3300.4,0.00080465]
[1768652240813,2.11955892,3300.8,3300.4,0.00080465]
[1768652241017,5.14912886,3300.8,3300.4,0.00080465]
[1768652241520,5.14912886,3300.8,3300.7,0.001]
[1768652242026,2.11955892,3300.8,3300.7,0.001]
[1768652242426,5.1491275,3300.8,3300.7,0.001]
[1768652242921,2.11955892,3300.8,3300.7,0.001]
[1768652243291,5.1491275,3300.8,3300.7,0.001]
[1768652245025,2.11955892,3300.8,3300.7,0.001]
[1768652245226,3.02955323,3300.9,3300.7,0.001]
[1768652245528,5.02597027,3300.9,3300.7,0.001]
[1768652246096,5.02593414,3300.9,3300.7,0.001]
[1768652246604,3.0295171,3300.9,3300.7,0.001]
[1768652249226,2.49841704,3301.0,3300.7,0.001]
[1768652249448,1.99641704,3300.9,3300.7,0.001]
[1768652251807,3.02956858,3300.8,3300.7,0.001]
[1768652257844,5.02593468,3300.9,3300.7,0.001]
[1768652262948,3.78131131,3301.0,3300.4,0.00080465]
[1768652262949,2.01643793,3300.7,3300.4,0.00080465]
[1768652265067,2.01643793,3300.6,3300.4,0.00080465]
[1768652265284,2.01643793,3300.6,3300.0,0.001]
[1768652266419,2.51643793,3300.6,3300.0,0.001]
[1768652267273,2.01643793,3300.2,3299.6,0.00080481]
[1768652267565,2.01724274,3300.0,3299.2,0.07855338]
[1768652267853,2.01643793,3299.8,3299.2,0.07855338]
[1768652268058,2.30018441,3299.7,3299.2,0.07855338]
[1768652268253,0.28374648,3299.6,3299.2,0.07855338]
[1768652268558,2.01643793,3299.6,3299.0,3.50236786]
[1768652268758,2.01643793,3299.6,3299.1,0.35023679]
[1768652269654,3.03068921,3299.6,3299.1,0.35023679]
[1768652269836,2.01643793,3299.5,3299.1,0.35023679]
[1768652276177,0.001,3299.2,3299.1,0.35023679]
[1768652276462,0.001,3299.2,3299.1,3.90763566]
[1768652276679,3.03111753,3300.0,3299.2,0.53852635]
[1768652276877,2.04533438,3300.4,3299.7,0.53852635]
[1768652277038,2.04533438,3300.4,3299.9,0.53852635]
[1768652277450,5.07536195,3300.3,3299.9,0.53852635]
[1768652278566,5.07536195,3300.3,3299.8,0.55066082]
[1768652281040,3.02968304,3300.7,3300.1,0.58624431]
[1768652281239,3.52968304,3300.7,3300.1,0.58624431]
[1768652281945,5.57501742,3300.7,3300.1,0.58624431]
[1768652286180,5.57501742,3300.7,3300.2,0.64287024]
[1768652287057,2.54533438,3300.7,3300.2,0.64287024]
[1768652287253,2.04533438,3300.6,3300.2,0.64287024]
[1768652287467,2.04533438,3300.6,3300.0,0.65381108]
[1768652287974,0.001,3300.4,3300.0,0.65381108]
[1768652290565,0.001,3300.4,3300.0,1.05835539]
[1768652291993,0.001,3300.4,3300.0,0.65381108]
[1768652299075,0.001,3300.4,3300.1,0.7756792]
[1768652299291,0.00080465,3300.8,3300.4,0.7746792]
[1768652300087,0.002,3300.7,3300.4,0.7746792]
[1768652304799,0.002,3301.0,3300.5,0.83831086]
[1768652305497,0.002,3301.0,3300.6,0.83831086]
[1768652309896,0.002,3301.0,3300.6,3.86804958]
[1768652310102,0.002,3301.0,3300.6,0.83831086]
[1768652311196,0.002,3301.0,3300.6,3.86805016]
[1768652311401,0.00080522,3301.2,3300.7,0.88894217]
[1768652311600,0.00160832,3301.5,3301.0,0.88894217]
[1768652311905,0.00160832,3301.5,3300.8,4.76814794]
[1768652311906,2.2337306,3301.5,3300.8,4.76814794]
[1768652312206,2.34717203,3301.4,3300.9,0.47681479]
[1768652312371,2.34717203,3301.4,3300.8,0.0008053]
[1768652312973,2.34717203,3300.9,3300.4,0.00080473]
[1768652314203,2.34717203,3300.8,3300.4,0.00080473]
[1768652314973,2.34797676,3300.8,3299.6,3.96072041]
[1768652315181,2.34797676,3300.8,3299.7,4.45985617]
[1768652315487,2.34717203,3300.6,3299.7,4.45985617]
[1768652315671,2.34717203,3300.6,3299.7,0.5]
[1768652315869,0.5,3300.5,3299.7,0.5]
[1768652316068,2.34717203,3300.4,3299.8,3.03047194]
[1768652316300,2.34717203,3300.4,3299.9,0.93696293]
[1768652316511,2.34717203,3300.4,3299.7,1.43696293]
[1768652316512,2.34717203,3300.3,3299.7,1.43696293]
[1768652316684,2.34717203,3300.3,3299.7,1.88380422]
[1768652318904,3.03004872,3300.3,3299.7,1.88380422]
[1768652319110,2.34717203,3300.2,3299.7,1.88380422]
[1768652319400,2.34717203,3300.2,3299.7,0.5]
[1768652323180,2.34717203,3300.2,3299.7,0.45]
[1768652325083,2.34717203,3300.2,3300.0,0.001]
[1768652328910,2.34717203,3300.4,3300.0,0.001]
[1768652329535,5.37695989,3300.6,3300.0,1.02741023]
[1768652330253,2.34717203,3300.5,3300.0,1.02741023]
[1768652331746,2.34717203,3300.5,3300.0,0.001]
[1768652331948,2.35716467,3300.4,3300.0,0.001]
[1768652332953,2.35716467,3300.3,3300.0,0.001]
[1768652336564,0.002,3300.1,3300.0,0.001]
[1768652341655,2.35916467,3300.1,3300.0,0.001]
[1768652345647,2.35716467,3300.0,3299.6,0.00080489]
[1768652346235,2.35716467,3299.9,3299.0,4.65669778]
[1768652347573,2.35716467,3299.7,3299.0,4.65669778]
[1768652349264,2.35716467,3299.6,3299.3,0.002]
[1768652350949,2.35716467,3299.6,3299.0,0.001]
[1768652351155,2.35716467,3299.5,3299.0,0.001]
[1768652351566,2.35716467,3299.4,3299.0,0.001]
[1768652358848,2.35716467,3299.3,3299.0,0.001]
[1768652364669,2.49289335,3299.5,3299.0,0.001]
[1768652372685,2.49289335,3299.5,3299.3,0.002]
[1768652372892,2.4925329,3299.4,3299.3,0.002]
[1768652374367,2.4925329,3299.4,3299.0,0.001]
[1768652374567,2.4925329,3299.3,3299.0,0.001]
[1768652379166,2.4925329,3299.2,3299.0,0.001]
[1768652381273,3.03106841,3299.2,3299.0,0.001]
[1768652381479,2.4925329,3299.1,3299.0,0.001]
[1768652385109,3.04489006,3299.1,3298.7,0.00080883]
[1768652385302,2.4925329,3299.1,3298.7,0.00080883]
[1768652385619,2.4925329,3299.0,3298.7,0.00080883]
[1768652397438,5.52377638,3299.0,3298.7,0.00080883]
[1768652397627,2.55217227,3298.9,3298.7,0.00080883]
[1768652403738,5.58324923,3299.2,3298.7,0.00080883]
[1768652404056,2.55217227,3299.1,3298.7,0.00080883]
[1768652405263,2.55217227,3299.4,3298.7,1.34484772]
[1768652405465,3.05217227,3299.4,3298.7,1.34484772]
[1768652405757,6.38834627,3299.4,3298.7,1.34484772]
[1768652406055,9.41920304,3299.4,3298.7,1.34484772]
[1768652406258,6.38834627,3299.4,3298.7,1.34484772]
[1768652406460,9.41920304,3299.4,3298.7,1.34484772]
[1768652407560,2.55217227,3299.3,3298.7,1.34484772]
[1768652407741,3.03103782,3299.2,3298.7,1.34484772]
[1768652409331,3.03103782,3299.2,3299.0,0.002]
[1768652409740,0.001,3299.1,3299.0,0.002]
[1768652418069,2.55317227,3299.1,3299.0,0.002]
[1768652418459,0.001,3299.1,3299.0,0.002]
[1768652426551,2.45946653,3299.1,3299.0,0.002]
[1768652427465,2.45946653,3299.1,3298.7,0.00080883]
[1768652427668,5.48968811,3299.0,3298.7,0.00080883]
[1768652427863,2.45846653,3298.9,3298.7,0.00080883]
[1768652430594,2.45946653,3299.1,3298.7,0.00080883]
[1768652433390,5.49059623,3299.1,3299.0,0.002]
[1768652433554,6.34275045,3299.1,3299.0,0.002]
[1768652434588,3.31162075,3299.1,3299.0,0.002]
[1768652435075,6.34275045,3299.1,3299.0,0.002]
[1768652435479,5.49059623,3299.1,3299.0,0.002]
[1768652435690,2.45946653,3299.1,3299.0,0.002]
[1768652435998,5.49059623,3299.1,3299.0,0.002]
[1768652436594,2.61119548,3299.0,3298.7,0.00080883]
[1768652436768,2.41119548,3299.0,3298.7,0.00080883]
[1768652436968,3.0321297,3299.1,3298.7,1.61368263]
[1768652437470,5.64332518,3299.1,3298.7,0.00080883]
[1768652438507,2.61119548,3299.0,3298.7,0.00080883]
[1768652442523,5.64242361,3299.0,3298.7,0.00080883]
[1768652443014,2.61119548,3298.9,3298.7,0.00080883]
[1768652461535,2.66407672,3299.1,3298.7,0.00080883]
[1768652461847,0.001,3299.1,3298.7,1.66697989]
[1768652468337,2.66407672,3299.1,3298.7,1.66697989]
[1768652470039,2.66407672,3299.1,3299.0,0.002]
[1768652472145,0.001,3299.1,3299.0,0.002]
[1768652497290,2.54135014,3299.1,3299.0,0.002]
[1768652502461,0.001,3299.1,3299.0,0.002]
[1768652505655,3.09857975,3299.1,3298.7,0.00080883]
[1768652506355,2.54135014,3299.1,3298.7,0.00080883]
[1768652507464,0.001,3299.1,3298.8,1.73142758]
[1768652507654,3.03167136,3299.6,3299.0,1.73247759]
[1768652507655,0.5,3299.5,3299.0,1.73247759]
[1768652507957,0.001,3299.6,3299.0,1.73247759]
[1768652508134,0.001,3299.6,3299.2,1.73247759]
[1768652509120,0.00080489,3300.0,3299.4,1.73247788]
[1768652509557,0.002,3300.4,3299.4,1.73167299]
[1768652509722,0.002,3300.4,3299.6,0.00080497]
[1768652509723,5.57037771,3300.3,3299.6,0.00080497]
[1768652510056,2.54235014,3300.1,3299.7,0.47642108]
[1768652510245,2.54235014,3300.1,3299.6,1.73350926]
[1768652512962,0.002,3300.1,3299.6,1.73350926]
[1768652514726,0.002,3300.1,3299.7,1.73844777]
[1768652516939,0.002,3300.1,3299.9,0.001]
[1768652517655,2.56307077,3300.1,3299.9,0.001]
[1768652520475,5.5932903,3300.1,3299.9,0.001]
[1768652521076,2.56107077,3300.0,3299.6,0.00080497]
[1768652521284,2.56107077,3299.9,3299.2,1.74378845]
[1768652521441,2.56107077,3299.9,3299.1,3.03106254]
[1768652521644,2.56107077,3299.9,3299.2,0.4774851]
[1768652521952,2.56107077,3299.9,3299.1,1.74378845]
[1768652522153,2.56107077,3299.9,3299.1,4.77490552]
[1768652522477,2.56107077,3299.7,3299.1,4.77490552]
[1768652522776,2.56107077,3299.7,3299.1,1.74378845]
[1768652524279,2.56107077,3299.5,3299.0,0.5]
[1768652524460,2.56107077,3299.5,3298.9,0.5]
[1768652525246,2.56107077,3299.5,3298.9,1.02793768]
[1768652525461,2.56107077,3299.5,3298.9,2.77510773]
[1768652528042,2.56107077,3299.4,3298.9,0.52793768]
[1768652528246,2.56107077,3299.4,3298.7,0.00080883]
[1768652528674,2.56107077,3299.4,3298.7,1.75119144]
[1768652528875,2.56107077,3299.4,3299.2,0.002]
[1768652529979,3.03094595,3299.3,3299.2,0.002]
[1768652530159,5.59201672,3299.3,3299.2,0.002]
[1768652537885,2.56107077,3299.5,3299.2,0.002]
[1768652541086,6.06134076,3299.6,3299.2,0.002]
[1768652541294,6.97358191,3299.6,3299.2,1.76127624]
[1768652541589,9.68730202,3299.6,3299.2,1.76127624]
[1768652541895,9.68730202,3299.6,3299.2,0.002]
[1768652542195,2.71372011,3299.5,3299.2,0.002]
[1768652543490,5.7445742,3299.4,3299.2,0.002]
[1768652543681,2.71372011,3299.3,3299.2,0.002]
[1768652544372,2.71372011,3299.3,3298.7,0.00080883]
[1768652545506,3.03103782,3299.2,3298.7,0.00080883]
[1768652545659,2.71372011,3299.1,3298.7,0.00080883]
[1768652547797,3.03115489,3299.1,3298.7,0.00080883]
[1768652547959,2.71372011,3299.0,3298.7,0.00080883]
[1768652553100,3.56652212,3299.4,3298.7,1.77113125]
[1768652553395,6.12863402,3299.4,3298.7,1.77113125]
[1768652554513,3.53087697,3299.4,3298.7,1.77113125]
[1768652554691,2.59775705,3299.3,3298.7,1.77113125]
[1768652555096,5.62870689,3299.3,3298.8,1.77146315]
[1768652556810,2.59775705,3299.3,3298.8,1.77146315]
[1768652557282,5.62871679,3299.3,3298.8,1.77146315]
[1768652558138,2.59775705,3299.3,3298.8,1.77146315]
[1768652559116,5.62871675,3299.3,3298.8,1.77146315]
[1768652559318,2.59775705,3299.3,3298.8,1.77146315]
[1768652562020,5.62871132,3299.3,3298.8,1.77146315]
[1768652562711,2.59775705,3299.2,3298.8,1.77146315]
[1768652564940,0.001,3299.0,3298.8,1.77146315]
[1768652570534,0.001,3299.0,3298.7,1.7800862]
[1768652572027,0.001,3299.0,3298.7,4.81156233]
[1768652572468,0.001,3299.0,3298.7,1.7800862]
[1768652573026,0.001,3299.0,3298.7,0.00080883]
[1768652573027,2.68659832,3299.0,3298.7,0.00080883]
[1768652573727,2.68659832,3299.0,3298.7,3.03230463]
[1768652574932,0.001,3299.0,3298.7,3.03230463]
[1768652575531,0.001,3299.0,3298.7,4.81431518]
[1768652581212,5.71608501,3299.8,3298.8,1.78979341]
[1768652581428,2.68559832,3299.7,3299.0,4.82096528]
[1768652581622,2.68559832,3299.7,3299.1,1.78979341]
[1768652583717,5.71618277,3299.7,3299.1,1.78979341]
[1768652584244,2.68559832,3299.7,3299.2,1.79102619]
[1768652584427,5.71618784,3299.7,3299.2,1.79102619]
[1768652587744,0.001,3299.4,3299.2,1.79102619]
[1768652587927,0.001,3299.4,3299.3,1.79263631]
[1768652590717,0.001,3299.4,3299.2,2.27601238]
[1768652592568,0.001,3299.4,3299.2,0.48222171]
[1768652619192,0.001,3299.4,3299.2,2.28566999]
[1768652619390,5.54805384,3299.8,3299.3,1.80344828]
[1768652619591,2.51835206,3300.0,3299.4,2.33411758]
[1768652619891,2.51754709,3299.9,3299.4,2.33411758]
[1768652622989,0.001,3299.6,3299.4,5.36495697]
[1768652623194,2.51754709,3299.9,3299.4,5.36495697]
[1768652624577,2.51754709,3299.9,3299.4,2.33411758]
[1768652624780,2.51754709,3299.9,3299.5,0.58650303]
[1768652634635,0.002,3299.6,3299.5,0.58650303]
[1768652637378,0.002,3299.6,3299.5,3.61726526]
[1768652637613,0.002,3299.9,3299.6,1.66576758]
[1768652638117,0.002,3299.9,3299.5,3.61726526]
[1768652638118,0.002,3299.9,3299.5,5.27323319]
[1768652638316,0.002,3299.9,3299.6,0.83040801]
[1768652639211,0.002,3299.9,3299.6,2.47668707]
[1768652639417,0.002,3299.9,3299.6,5.50733348]
[1768652640020,2.45821186,3300.3,3299.7,0.5]
[1768652640407,2.45821186,3300.3,3299.6,0.83121306]
[1768652640611,2.45821186,3300.3,3299.7,0.49484389]
[1768652640922,2.45821186,3300.3,3299.6,0.00080505]
[1768652641119,3.03011938,3300.2,3299.6,0.00080505]
[1768652641284,2.45821186,3300.1,3299.6,0.00080505]
[1768652644309,2.45821186,3300.0,3299.6,0.00080505]
[1768652647319,0.002,3299.8,3299.6,0.00080505]
[1768652647557,2.46021186,3299.8,3299.7,0.35315458]
[1768652647720,2.46021186,3299.8,3299.6,0.00080505]
[1768652649225,2.46021186,3299.8,3299.1,3.0311082]
[1768652649391,2.45821186,3299.7,3299.1,3.5311082]
[1768652650222,2.45821186,3299.7,3299.0,3.03120391]
[1768652650410,2.45821186,3299.7,3299.1,0.5]
[1768652651927,2.45821186,3299.6,3299.1,0.5]
[1768652659529,2.45821186,3299.6,3299.4,0.001]
[1768652662733,3.03252132,3299.8,3299.4,0.001]
[1768652662734,2.44257725,3299.8,3299.4,0.001]
[1768652664533,2.44257725,3299.8,3299.4,1.42751371]
[1768652667457,2.44257725,3299.8,3299.4,0.001]
[1768652675827,0.002,3299.8,3299.4,1.3415721]
[1768652676429,2.34173539,3299.8,3299.4,1.3415721]
[1768652677934,0.002,3299.8,3299.5,1.32849289]
[1768652685267,0.002,3299.8,3299.4,0.001]
[1768652688283,2.34173539,3299.8,3299.4,0.001]
[1768652694664,2.24660152,3299.7,3299.4,0.001]
[1768652703663,0.002,3299.8,3299.4,1.04390173]
[1768652705091,2.24860152,3299.8,3299.4,1.04390173]
[1768652705392,2.24860152,3299.8,3299.4,0.001]
[1768652707483,5.27911217,3299.8,3299.4,0.001]
[1768652707680,3.03251065,3299.8,3299.4,0.001]
[1768652707885,5.27911217,3299.8,3299.4,0.001]
[1768652710204,2.24660152,3299.7,3299.4,0.001]
[1768652711207,2.24660152,3299.7,3298.7,0.95548516]
[1768652711208,2.47146167,3299.7,3298.7,0.95548516]
[1768652711504,2.47146167,3299.7,3299.0,0.5]
[1768652713103,3.03067038,3299.6,3299.0,0.5]
[1768652713269,2.24660152,3299.5,3299.0,0.5]
[1768652717880,2.24660152,3299.5,3299.3,0.002]
[1768652732222,2.19318309,3299.7,3299.3,0.002]
[1768652741431,0.001,3299.4,3299.3,0.002]
[1768652758147,2.30144327,3299.4,3298.6,0.002]
[1768652758353,2.08102496,3299.0,3298.3,2.03014293]
[1768652759970,3.03131346,3298.9,3298.3,2.03014293]
[1768652760233,0.00080883,3299.1,3298.6,2.03014293]
[1768652760375,3.03194597,3299.1,3298.6,2.03014293]
[1768652760676,2.08102496,3299.0,3298.4,2.03014293]
[1768652761043,2.08102496,3299.0,3298.5,0.5]
[1768652761387,2.08102496,3299.0,3298.1,0.001]
[1768652761388,0.001,3299.4,3298.8,2.03014293]
[1768652761541,2.08302496,3299.8,3299.0,2.03014293]
[1768652761754,0.5,3299.7,3299.2,4.40849095]
[1768652761948,0.5,3299.7,3299.5,2.03014293]
[1768652762260,0.5,3299.7,3299.4,3.03085409]
[1768652762261,0.5,3299.8,3299.6,2.53624263]
[1768652762878,0.5,3299.9,3299.6,2.53624263]
[1768652764663,0.5,3299.9,3299.7,2.03014293]
[1768652768290,0.5,3299.9,3299.6,5.5668649]
[1768652768492,0.5,3299.9,3299.7,0.55668649]
[1768652776483,0.5,3299.9,3299.7,3.58725332]
[1768652776695,0.00080505,3300.0,3299.8,2.03014293]
[1768652777598,0.00080505,3300.0,3299.9,0.5]
[1768652777891,0.50080505,3300.0,3299.8,2.03014293]
[1768652778481,0.00080505,3300.0,3299.8,5.06062816]
[1768652778779,0.50080505,3300.0,3299.8,5.06062816]
[1768652779398,0.50080505,3300.0,3299.7,3.03055033]
[1768652779574,0.50080505,3300.0,3299.6,5.0607938]
[1768652779897,0.50080505,3300.0,3299.6,5.86995774]
[1768652780300,0.50080505,3300.0,3299.7,3.03057702]
[1768652783292,0.50080505,3300.0,3299.6,5.86994279]
[1768652783498,1.43790785,3300.0,3299.6,5.86994279]
[1768652784198,1.43790785,3300.0,3299.6,2.83930687]
[1768652784898,1.43790785,3300.0,3299.6,5.86997357]
[1768652786802,1.43790785,3300.0,3299.6,2.83930687]
[1768652789400,0.93790785,3300.0,3299.9,0.001]
[1768652806218,0.00080505,3300.0,3299.9,0.001]
[1768652812237,0.00080505,3300.0,3299.9,0.90492744]
[1768652812630,0.00080505,3300.0,3299.9,0.001]
[1768652819753,0.99192903,3300.0,3299.9,0.001]
[1768652819942,1.69734769,3300.0,3299.9,0.001]
[1768652821150,4.72765072,3300.0,3299.9,0.001]
[1768652822770,4.72765072,3300.0,3299.4,0.5]
[1768652822771,0.99112398,3299.9,3299.4,3.53084671]
[1768652822953,0.99112398,3299.9,3299.4,0.5]
[1768652823451,0.99112398,3299.9,3299.4,1.40392744]
[1768652827461,0.99112398,3299.9,3299.4,0.5]
[1768652831465,0.99112398,3299.9,3299.4,4.43476749]
[1768652834379,0.99112398,3299.9,3299.4,1.40392744]
[1768652834970,0.99112398,3299.8,3299.4,1.40392744]
[1768652835158,0.99112398,3299.8,3299.4,0.5]
[1768652835762,0.99112398,3299.7,3299.0,0.90392744]
[1768652836641,4.02179436,3299.6,3299.0,0.90392744]
[1768652847193,0.98024593,3299.5,3299.0,0.90392744]
[1768652847584,0.98024593,3299.5,3299.3,0.002]
[1768652848804,1.38132838,3299.5,3299.3,0.002]
[1768652849658,0.98024593,3299.4,3299.0,0.002]
[1768652852991,0.90532427,3299.3,3299.0,0.002]
[1768652853701,0.90532427,3299.7,3299.0,0.95924778]
[1768652853898,3.03057853,3299.7,3299.0,0.95924778]
[1768652855693,3.03057853,3299.7,3299.1,0.95724778]
[1768652856020,3.77722217,3299.7,3299.1,0.95724778]
[1768652859811,0.001,3299.4,3299.1,0.95724778]
[1768652860324,0.001,3299.4,3299.2,0.95724778]
[1768652862223,0.001,3299.4,3299.3,0.95724778]
[1768652868126,0.00080505,3300.0,3299.4,0.95724778]
[1768652868333,0.00080505,3300.0,3299.6,0.95724778]
[1768652870323,0.00080505,3300.0,3299.6,3.0306694]
[1768652870514,0.00080505,3300.0,3299.7,0.95724778]
[1768652872395,0.00080505,3300.0,3299.8,0.92515865]
[1768652876430,0.00080505,3300.0,3299.9,0.92515865]
[1768652878241,0.002,3300.1,3300.0,0.92515865]
[1768652879101,0.002,3300.4,3300.0,0.92515865]
[1768652880929,0.002,3300.4,3300.1,0.92515865]
[1768652903491,0.98349099,3300.4,3299.9,1.32134527]
[1768652903790,0.98349099,3300.4,3299.9,0.92578311]
[1768652906691,4.01344691,3300.4,3299.7,3.9563423]
[1768652906897,0.98149099,3300.3,3299.7,0.92578311]
[1768652907393,0.002,3300.1,3299.7,0.92578311]
[1768652912806,0.002,3300.1,3299.8,0.93018645]
[1768652913100,0.002,3300.1,3299.8,1.37634014]
[1768652919803,0.002,3300.1,3299.8,4.40682175]
[1768652920002,0.002,3300.1,3299.8,1.37634014]
[1768652920303,0.002,3300.1,3299.8,4.40679286]
[1768652922930,0.002,3300.1,3299.8,1.37634014]
[1768652927986,0.002,3300.1,3299.8,4.40680633]
[1768652929629,0.002,3300.1,3299.8,1.37634014]
[1768652931831,0.002,3300.1,3299.8,4.40681578]
[1768652933998,0.002,3300.1,3299.8,1.37634014]
[1768652934531,0.002,3300.1,3299.8,4.40681437]
[1768652935728,0.92726906,3300.1,3299.7,3.03054678]
[1768652936301,0.92726906,3300.1,3299.6,3.53143612]
[1768652937940,0.92726906,3300.1,3299.6,4.43372764]
[1768652943539,0.92726906,3300.1,3299.9,0.001]
[1768652947443,3.95749576,3300.1,3299.9,0.001]
[1768652947647,0.92526906,3300.0,3299.9,0.001]
[1768652956861,0.92526906,3299.7,3299.0,3.53321369]